Cogmind - Beta 17 @@@ ROGUE MODE // 2026.08.03 @ 00:09:33 Player: dispear Result: Destroyed by B-36 Bruiser with Hammer Performance ------------- Evolutions (2) 1000 Regions Visited (6) 1200 Robots Destroyed (47) 235 Value Destroyed (1215) 1215 Prototype IDs (34) 680 Alien Tech Used (0) 0 Bonus (435) 435 TOTAL SCORE: 4765 Bonus ------- Follower Combat Kills 135 Aligned with FarCom 300 Cogmind --------- Core Integrity 0/550 Matter 286/300 Energy 98/100 System Corruption 6% Temperature Cool (0) Movement Core (50) Location -8/Storage Parts ------- > --- POWER (1) -------- (None) > --- PROPULSION (4) --- (None) > --- UTILITY (4) ------ (None) > --- WEAPON (2) ------- (None) > --- INVENTORY (5) ---- Heat Sink Shock Rifle Shock Rifle Peak State ------------ > --- POWER ------------ Reinforced Deuterium Engine > --- PROPULSION ------- Armored Treads Armored Treads Advanced Treads Advanced Treads > --- UTILITY ---------- Medium Storage Unit Signal Interpreter Improved Terrain Scanner Improved Terrain Scan Processor > --- WEAPON ----------- AWS/Thermal > --- INVENTORY -------- Flight Unit Flight Unit Heat Sink Heat Sink Improved Heat Sink Large Storage Unit Medium Battery Experimental Sensor Array Light Armor Plating Grenade Launcher [Rating: 42] Favorites ----------- Power Light Ion Engine Engine Light Ion Engine Propulsion Aluminum Leg Treads Advanced Treads Leg Aluminum Leg Flight Unit Improved VTOL Module Utility Medium Storage Unit Device Sensor Array Storage Medium Storage Unit Processor Signal Interpreter Protection Light Armor Plating Weapon AWS/Thermal Energy Gun AWS/Thermal Energy Cannon Advanced Beam Cannon Ballistic Gun Improved Assault Rifle Launcher Grenade Launcher Build | -11 -10 -10 -10 -9 -8 -8 ------- Run | Yrd Mat Min Exi Min Mat Sto Slots Evolved 4 | . . . . . 4 . Power . | . . . . . . . Propulsion 2 | . . . . . 2 . Utility 2 | . . . . . 2 . Weapon . | . . . . . . . Parts Attached 41 | 7 3 3 2 2 11 13 Power 5 | 1 . . 1 1 2 . Engine 5 | 1 . . 1 1 2 . Core . | . . . . . . . Reactor . | . . . . . . . Propulsion 13 | 2 . 2 . . 6 3 Treads 7 | . . . . . 6 1 Leg 4 | 2 . 2 . . . . Wheel . | . . . . . . . Hover . | . . . . . . . Flight 2 | . . . . . . 2 Utility 10 | 2 3 . . 1 1 3 Device 4 | 1 1 . . . 1 1 Storage 3 | 1 2 . . . . . Processor 2 | . . . . 1 . 1 Hackware . | . . . . . . . Protection 1 | . . . . . . 1 Artifact . | . . . . . . . Weapon 13 | 2 . 1 1 . 2 7 Energy Gun 10 | 2 . . 1 . 1 6 Energy Cannon 1 | . . . . . 1 . Ballistic Gun 1 | . . . . . . 1 Ballistic Cannon . | . . . . . . . Launcher 1 | . . 1 . . . . Special Weapon . | . . . . . . . Impact Weapon . | . . . . . . . Slashing Weapon . | . . . . . . . Piercing Weapon . | . . . . . . . Special Melee Weapon . | . . . . . . . Unidentified Prototypes 8 | . . . 1 . 1 6 Corrupted Parts 1 | . . . . . . 1 System Corruption 2 | . . . . . . 2 Parts Lost 16 | . . 2 . 1 2 11 Power 3 | . . . . 1 1 1 Propulsion 6 | . . . . . 1 5 Utility 3 | . . . . . . 3 Weapon 4 | . . 2 . . . 2 Highest Loss Streak 5 | . . 2 . 1 1 5 To Critical Strikes . | . . . . . . . Average Backups 8 | 2 5 8 7 9 9 8 Power . | . 1 1 1 . . . Propulsion 2 | 1 2 2 2 4 2 1 Utility 4 | . 2 4 4 4 4 6 Weapon . | . . . . 1 2 1 Tool/Special . | . . . . . . . Unused Backups 10 | . 2 . . . 1 7 Power . | . . . . . . . Propulsion 4 | . 2 . . . 1 1 Utility 4 | . . . . . . 4 Weapon 2 | . . . . . . 2 Tool/Special . | . . . . . . . Average Slot Usage (%) 84 | . 100 89 85 85 84 77 Engine 11 | . 14 14 14 14 8 6 Treads 7 | . . . . . 13 22 Leg 19 | . 28 28 28 28 15 . Device 10 | . 14 14 14 8 17 2 Storage 11 | . 14 14 14 14 9 8 Processor 6 | . . . . 5 9 17 Energy Gun 11 | . 28 11 3 14 8 14 Launcher 3 | . . 6 10 . . . Peak Build Rating 42 | 7 8 8 22 23 40 42 Average Rating 19 | 5 7 6 9 22 30 27 On Entrance 15 | . 7 8 6 22 23 40 Avg Prop Armor Cover (%) 6 | . . . . . . 6 Naked Turns 9 | . . . . . . 9 Heaviest Build 35 | 15 30 30 22 24 35 35 Greatest Support 88 | 20 20 20 20 20 88 84 Greatest Overweight (x) 5 | . 1 1 1 1 1 5 Average Overweight (x) . | . . . . . . . Largest Inventory Capacity 15 | 8 15 15 10 10 15 10 Average Capacity 9 | 7 8 12 10 10 10 9 Most Carried 10 | 5 9 9 8 10 10 10 Average Carried 8 | 2 5 8 7 9 9 8 Final Capacity 15 | 8 15 10 10 10 10 5 Final Carried 10 | 4 9 7 8 10 10 3 Class Distribution -------------------- 62% | Mutant 18% | Skirmisher 13% | Scavenger-Skirmisher 5% | Scavenger-Mutant Dominant Class ---------------- Mutant | -10/Materials Mutant | -10/Mines Mutant | -10/Exiles Skirmisher | -9/Mines Scavenger-Skirmisher | -8/Materials Mutant | -8/Storage Resources | -11 -10 -10 -10 -9 -8 -8 ----------- Run | Yrd Mat Min Exi Min Mat Sto Matter Collected 746 | 270 10 91 . 45 135 195 Remotely . | . . . . . . . Salvage Created 1787 | 125 . 74 . 168 495 925 Parts 97 | 7 . 2 . 14 33 41 Haulers Intercepted 1 | . . . . . . 1 Recyclers Shooed 1 | . . . . . . 1 Parts Field Recycled . | . . . . . . . Retrieved Matter . | . . . . . . . Parts Self-Destructed . | . . . . . . . Prevented . | . . . . . . . Parts Restored . | . . . . . . . Kills | -11 -10 -10 -10 -9 -8 -8 ------- Run | Yrd Mat Min Exi Min Mat Sto Combat Hostiles Destroyed 35 | . . 2 . 7 10 16 Guns 31 | . . 1 . 7 9 14 Cannons 1 | . . . . . 1 . AOE 1 | . . 1 . . . . Classes Destroyed 10 | 2 . 1 . 1 4 2 Tunneler 2 | 2 . . . . . . Hauler 1 | . . . . . . 1 Recycler 5 | 1 . . . 1 . 3 Watcher 4 | . . . . . 4 . Swarmer 15 | . . . . 7 4 4 Cutter 1 | . . . . . 1 . Grunt 11 | . . 2 . . 2 7 Duelist 1 | . . . . . . 1 Sentry 6 | . . . . . 2 4 Heavy 1 | . . . . . 1 . Best Kill Streak 11 | 2 . 1 . 4 11 4 Combat Bots Only 5 | . . 1 . 4 5 3 Max Kills in Single Turn 1 | 1 . 1 . 1 1 1 Gunslinging . | . . . . . . . Exploded 1 | . . 1 . . . . Melee . | . . . . . . . Uniques/NPCs Destroyed . | . . . . . . . Combat | -11 -10 -10 -10 -9 -8 -8 -------- Run | Yrd Mat Min Exi Min Mat Sto Hostile Shots Fired 292 | . . 38 . 26 24 204 Missed 76 | . . 11 . 8 8 49 Hits 216 | . . 27 . 18 16 155 Melee 6 | . . . . . . 6 Projectile 210 | . . 27 . 18 16 149 AOE 1 | . . . . . 1 . Critical Strikes 13 | . . 1 . 2 . 10 Damage Taken 3070 | . . 386 . 144 265 2275 Core 625 | . . 46 . 28 49 502 Absorbed by Shields . | . . . . . . . Core Remaining (%) 85 | 100 . . . 70 . . Volleys Fired 81 | 5 . 13 . . 7 56 Largest 2 | 2 . 2 . . 2 2 Hottest 122 | 100 . 100 . . 118 122 Shots Fired 220 | 10 . 23 . 20 47 120 Gun 212 | 10 . 22 . 20 40 120 Cannon 7 | . . . . . 7 . Launcher 1 | . . 1 . . . . Special . | . . . . . . . Kinetic . | . . . . . . . Thermal 207 | 10 . 22 . 20 40 115 Explosive 1 | . . 1 . . . . Electromagnetic 12 | . . . . . 7 5 Robot Hit Streak 22 | 2 . 3 . 5 6 22 Robot Miss Streak 5 | 1 . 3 . 4 1 5 Penetration Max . | . . . . . . . Secondary Targets 3 | . . 1 . . . 2 Max Gunslinging Chain 1 | . . 1 . . . 1 Autonomous 86 | . . . . 20 33 33 Shots Hit Robots 155 | 6 . 12 . 12 36 89 Core Hits 66 | 4 . 4 . 9 18 31 Critical Kills . | . . . . . . . Critical Parts Destroyed . | . . . . . . . Critical Strikes 9 | 2 . . . . . 7 Burn 9 | 2 . . . . . 7 Melee Attacks . | . . . . . . . Impact . | . . . . . . . Slashing . | . . . . . . . Piercing . | . . . . . . . Sneak Attacks . | . . . . . . . Combat Hostiles . | . . . . . . . Follow-up Attacks . | . . . . . . . Damage Inflicted 3744 | 75 . 198 . 427 919 2125 Guns 3570 | 75 . 151 . 427 817 2100 Cannons 102 | . . . . . 102 . Explosions 67 | . . 47 . . . 20 Melee . | . . . . . . . Ramming 5 | . . . . . . 5 Kinetic . | . . . . . . . Thermal 3569 | 75 . 151 . 427 846 2070 Explosive 47 | . . 47 . . . . Electromagnetic 123 | . . . . . 73 50 Impact . | . . . . . . . Slashing . | . . . . . . . Piercing . | . . . . . . . Highest Corruption 4 | . . . . . . 4 Average Corruption 3 | . . . . . . 3 Corruption Purged . | . . . . . . . Corruption Blocked . | . . . . . . . Effects 4 | . . . . . . 4 Message Errors 1 | . . . . . . 1 Matter Fused 2 | . . . . . . 2 Data Loss (minor) 1 | . . . . . . 1 Overload Shots . | . . . . . . . Overflow Damage 21 | . . 21 . . . . Projectiles . | . . . . . . . Explosions 21 | . . 21 . . . . Melee . | . . . . . . . Knockbacks . | . . . . . . . Impact . | . . . . . . . Kinetic . | . . . . . . . Secondary . | . . . . . . . Self-Inflicted Damage . | . . . . . . . Shots . | . . . . . . . Rammed 1 | . . . . . . 1 Targets Rammed 1 | . . . . . . 1 Kicked . | . . . . . . . Crushed . | . . . . . . . Highest Temperature 547 | 78 . 459 . . 308 547 Average Temperature 213 | 28 . 259 . . 149 228 Received Heat Transfer 1212 | . . 240 . . 63 909 Effects 24 | . . 7 . . . 17 Shutdowns 6 | . . 1 . . . 5 Energy Bleed 2 | . . 1 . . . 1 Interference 5 | . . . . . . 5 Matter Decay 1 | . . 1 . . . . Short Circuit 1 | . . . . . . 1 Damage (minor) 3 | . . . . . . 3 Damage (major) 4 | . . 4 . . . . Damage (core) 2 | . . . . . . 2 Siege Activations . | . . . . . . . Martial Activations . | . . . . . . . Shielding Activations . | . . . . . . . Robots Disrupted . | . . . . . . . Combat Hostiles . | . . . . . . . Robots Corrupted . | . . . . . . . Combat Hostiles . | . . . . . . . Parts Fried . | . . . . . . . Impact Corruptions . | . . . . . . . Robots Melted 2 | . . . . . . 2 Combat Hostiles 2 | . . . . . . 2 Parts Melted 16 | 1 . 1 . 1 3 10 Heat Transferred 6161 | 370 . 444 . 555 1147 3645 Parts Sabotaged . | . . . . . . . Parts Stolen . | . . . . . . . Parts Stripped . | . . . . . . . Power Chain Reactions 1 | . . . . . . 1 Alert | -11 -10 -10 -10 -9 -8 -8 ------- Run | Yrd Mat Min Exi Min Mat Sto Maximum Alert Level 1 | . . . . . 1 1 Low Security (%) 70 | 100 100 100 . 100 91 14 Level 1 29 | . . . . . 8 85 Level 2 . | . . . . . . . Level 3 . | . . . . . . . Level 4 . | . . . . . . . Level 5 . | . . . . . . . High Security . | . . . . . . . Max Security . | . . . . . . . Peak Influence 364 | 5 . 56 . 108 275 364 Initial 111 | . . . . . 32 111 Average 107 | 1 . 17 . 23 41 285 Influence Increases 1252 | 15 . 76 . 214 403 544 Destroy 0b10 Robot/C 800 | . . 40 . 160 200 400 Destroy 0b10 Robot/NC 60 | 15 . . . 5 20 20 Destroy Leader 180 | . . 10 . 20 58 92 Allied During Kill 42 | . . . . 10 8 24 Successful Hack 6 | . . . . . 6 . Disable Machine 30 | . . . . 15 15 . Destroy Structure 29 | . . 11 . 4 6 8 Lose Combat Pursuer 105 | . . 15 . . 90 . Influence Decreases 1045 | 15 . 50 26 130 221 603 Entered New Map 233 | . . . 26 . 52 155 Time Decay 645 | 15 . 40 . 120 152 318 Lost Part 140 | . . 10 . 10 10 110 Lost Ally 27 | . . . . . 7 20 Squads Dispatched 8 | . . . . . 2 6 Investigation . | . . . . . . . Extermination . | . . . . . . . Reinforcement 3 | . . . . . 2 1 Assault 2 | . . . . . . 2 Garrison 3 | . . . . . . 3 Intercept . | . . . . . . . Searches Triggered . | . . . . . . . Construction Impeded . | . . . . . . . Haulers Reinforced . | . . . . . . . Active Scanning Responses . | . . . . . . . Cargo Convoy Interrupts . | . . . . . . . Stealth | -11 -10 -10 -10 -9 -8 -8 --------- Run | Yrd Mat Min Exi Min Mat Sto Distress Signals 4 | . 1 . . . 2 1 Communications Jammed . | . . . . . . . Distress Signals . | . . . . . . . Times Spotted 60 | . . 3 . 7 15 35 Peak Tracking Total 9 | . . 2 . 3 8 9 Tactical Retreats 3 | . . 1 . . 2 . Traps | -11 -10 -10 -10 -9 -8 -8 ------- Run | Yrd Mat Min Exi Min Mat Sto Traps Triggered 1 | . . . . . . 1 Indirectly . | . . . . . . . Trap Hack Attempts . | . . . . . . . Triggered . | . . . . . . . Disarmed 6 | . 6 . . . . . Reprogrammed . | . . . . . . . Reused . | . . . . . . . Traps Extracted . | . . . . . . . Installed . | . . . . . . . Triggered . | . . . . . . . Machines | -11 -10 -10 -10 -9 -8 -8 ---------- Run | Yrd Mat Min Exi Min Mat Sto Machines Disabled 2 | . . . . 1 1 . Max in Single Turn 1 | . . . . 1 1 . Machines Repaired . | . . . . . . . Machines Dismantled . | . . . . . . . Machines Sabotaged . | . . . . . . . Overloaded Fab Kills . | . . . . . . . Hacking | -11 -10 -10 -10 -9 -8 -8 --------- Run | Yrd Mat Min Exi Min Mat Sto Machines Accessed 12 | . 2 . 5 . 5 . Terminals 7 | . 2 . . . 5 . Fabricators . | . . . . . . . Repair Stations . | . . . . . . . Recycling Units . | . . . . . . . Scanalyzers . | . . . . . . . Garrison Access . | . . . . . . . Total Hacks 79 | . 7 . 50 . 22 . Successful 64 | . 4 . 50 . 10 . Failed 14 | . 3 . . . 11 . Catastrophic 1 | . . . . . 1 . Database Lockouts 1 | . . . . . 1 . Manual 1 | . . . 1 . . . Terminals 29 | . 7 . . . 22 . Fabricators . | . . . . . . . Repair Stations . | . . . . . . . Recycling Units . | . . . . . . . Scanalyzers . | . . . . . . . Garrison Access . | . . . . . . . Terminal Hacks 64 | . 4 . 50 . 10 . Record 56 | . . . 49 . 7 . Prototype ID Bank 2 | . . . . . 2 . Locate Traps 1 | . 1 . . . . . Disarm Traps 1 | . 1 . . . . . Dispatch Records 1 | . 1 . . . . . Hauler Manifests 1 | . . . . . 1 . Zone Layout 1 | . 1 . . . . . Proto ID Catalog 1 | . . . 1 . . . Fabricator Hacks . | . . . . . . . Repair Station Hacks . | . . . . . . . Recycling Unit Hacks . | . . . . . . . Scanalyzer . | . . . . . . . Garrison Access Hacks . | . . . . . . . Unauthorized Hacks . | . . . . . . . Terminals . | . . . . . . . Fabricators . | . . . . . . . Repair Stations . | . . . . . . . Recycling Units . | . . . . . . . Scanalyzers . | . . . . . . . Garrison Access . | . . . . . . . Data Cores Recovered . | . . . . . . . Used . | . . . . . . . Hacking Detections 7 | . 2 . . . 5 . Full Trace Events 1 | . 1 . . . . . Feedback Events . | . . . . . . . Feedback Blocked . | . . . . . . . Robot Schematics Acquired . | . . . . . . . Robots Built . | . . . . . . . Authchips . | . . . . . . . Time . | . . . . . . . Total Robot Build Rating . | . . . . . . . Part Schematics Acquired . | . . . . . . . Parts Built . | . . . . . . . Authchips . | . . . . . . . Time . | . . . . . . . Total Part Build Rating . | . . . . . . . Part Studies Acquired . | . . . . . . . Parts Repaired . | . . . . . . . Time . | . . . . . . . Parts Recycled . | . . . . . . . Recycled Matter . | . . . . . . . Retrieved Matter . | . . . . . . . Retrieved Components . | . . . . . . . Parts Scanalyzed . | . . . . . . . Part Schematics Acquired . | . . . . . . . Parts Damaged . | . . . . . . . Bothacking | -11 -10 -10 -10 -9 -8 -8 ------------ Run | Yrd Mat Min Exi Min Mat Sto Used RIF Installer . | . . . . . . . Robots Hacked . | . . . . . . . Non-combat . | . . . . . . . Combat . | . . . . . . . Robot Hacks Applied . | . . . . . . . Relay Couplers Released . | . . . . . . . Fabnet Peak Effective % . | . . . . . . . Robots Rewired . | . . . . . . . Allies Hacked . | . . . . . . . Hacks Repelled . | . . . . . . . Allies | -11 -10 -10 -10 -9 -8 -8 -------- Run | Yrd Mat Min Exi Min Mat Sto Total Allies 4 | . . . . 2 . 2 Largest Group 2 | . . . . 2 2 2 Highest-Rated Group 62 | . . . . 56 56 62 Highest-Rated Ally 31 | . . . . 31 31 31 Total Orders . | . . . . . . . Ally Attacks 33 | . . . . 6 4 23 Total Damage 482 | . . . . 62 42 378 Kills 6 | . . . . 1 . 5 Allies Corrupted . | . . . . . . . Allies Melted . | . . . . . . . Intel | -11 -10 -10 -10 -9 -8 -8 ------- Run | Yrd Mat Min Exi Min Mat Sto Active Infowar (turns) 2147 | 48 162 164 784 393 437 159 Sensors 1437 | . 96 164 784 393 . . Terrain 593 | . . . . . 436 157 Seismic 572 | 48 66 . . . 437 21 Robot Analysis Total . | . . . . . . . Derelict Logs Recovered 1 | . . . . 1 . . Drone Launches . | . . . . . . . Drone Recoveries . | . . . . . . . Exploration | -11 -10 -10 -10 -9 -8 -8 ------------- Run | Yrd Mat Min Exi Min Mat Sto Turns Passed 3008 | 123 162 164 784 620 441 714 Spaces Moved 1797 | 79 123 83 597 315 267 333 Core 51 | 3 . . . . . 48 Treads 335 | . . . . . 94 241 Legs 1367 | 76 123 83 597 315 173 . Wheels . | . . . . . . . Hover . | . . . . . . . Flight 44 | . . . . . . 44 Fastest Speed 50 | 50 120 120 120 120 120 50 Average Speed 143 | 117 124 142 130 188 134 146 Slowest Speed 300 | 120 190 190 190 190 225 300 Overloaded Moves . | . . . . . . . Propulsion Burnouts . | . . . . . . . Robots Hopped . | . . . . . . . Potential Cave-ins . | . . . . . . . Cave-ins Triggered . | . . . . . . . Exploration Rate (%) 39 | 5 21 21 91 84 23 29 Regions Visited 6 Branch Regions 4 Pre-discovered Areas 1 | . . . 1 . . . Known Exits Taken 2 | . . . . 1 1 . Unknown Exits Taken 4 | 1 1 1 1 . . . Scrap Searched 1 | . . . . 1 . . Spaces Dug . | . . . . . . . Terrain Destroyed 27 | . . 11 . 4 6 6 Melee . | . . . . . . . Projectile 13 | . . . . 4 6 3 AOE 14 | . . 11 . . . 3 Terrain Rammed . | . . . . . . . Walls Destroyed . | . . . . . . . Machines Disabled . | . . . . . . . Actions | -11 -10 -10 -10 -9 -8 -8 --------- Run | Yrd Mat Min Exi Min Mat Sto Total 2081 | 97 132 104 599 342 336 471 Wait 93 | . . 4 . 17 31 41 Move 1791 | 78 122 82 596 314 266 333 Hop . | . . . . . . . Pick Up 32 | 7 5 . . 5 6 9 Fast Attach 16 | 4 . . 1 . 5 6 Attach 17 | 3 . 1 . 1 6 6 Detach 3 | . . . 1 . 1 1 Swap 21 | . 3 3 1 2 6 6 Drop 26 | . 2 1 . 3 8 12 Fire 81 | 5 . 13 . . 7 56 Melee . | . . . . . . . Ram . | . . . . . . . Kick . | . . . . . . . Crush 1 | . . . . . . 1 Escape Stasis . | . . . . . . . Rewire . | . . . . . . . Trap . | . . . . . . . Miscellaneous . | . . . . . . . Route ------- -11/Scrapyard -10/Materials -10/Mines -10/Exiles -9/Mines -8/Materials -8/Storage History --------- Turn | Location | Event 10 | -11/Scrapyard | Discovered new exit (range 15) 124 | -11/Scrapyard | Entered Materials 125 | -10/Materials | Met a group of wandering Federalists 253 | -10/Materials | Discovered new exit (range 9) 286 | -10/Materials | Entered Mines 287 | -10/Mines | Assembled infested the area 311 | -10/Mines | Build established: Mutant 445 | -10/Mines | Discovered new exit (range 5) 450 | -10/Mines | Entered Exiles 480 | -10/Exiles | Met 8R-AWN 501 | -10/Exiles | Met EX-HEX 546 | -10/Exiles | Met EX-DEC 564 | -10/Exiles | Learned location of Zion (-6) 620 | -10/Exiles | Discovered new exit (range 14) 704 | -10/Exiles | Visited The Gauntlet 884 | -10/Exiles | Met EX-BIN 1009 | -10/Exiles | Aligned with FarCom system 1010 | -10/Exiles | Given EX-Vault access code 1042 | -10/Exiles | Opened EX-Vault 1057 | -10/Exiles | Found Prototype Energy Gun 1057 | -10/Exiles | Identified AWS/Thermal 1099 | -10/Exiles | Warned to stay clear of 0b10 Research branches 1234 | -10/Exiles | Left Exiles lab with AWS/Thermal 1234 | -10/Exiles | Entered Mines 1329 | -9/Mines | Found a hidden stash of uninstalled traps 1535 | -9/Mines | Build established: Skirmisher 1704 | -9/Mines | Found a damaged Exp. Sensor Array with a note attached 1709 | -9/Mines | Found Prototype Device 1829 | -9/Mines | Discovered new exit (range 8) 1846 | -9/Mines | Identified exit to Materials 1850 | -9/Mines | Learned location of 1 exit from Materials 1854 | -9/Mines | Entered Materials 1854 | -8/Materials | Accompanied by 2 allies 1854 | -8/Materials | Evolved 4 slots: Propulsion x2, Utility x2 1855 | -8/Materials | Identified exit to Storage 1859 | -8/Materials | Led the pair of lost Derelicts to an unsafe place 2141 | -8/Materials | Central database locked down 2295 | -8/Materials | Entered Storage 2364 | -8/Storage | Met a pair of Derelict thieves 2424 | -8/Storage | Garrison activated, responded to threat 2430 | -8/Storage | AWS/Thermal suddenly broke down 2679 | -8/Storage | Core integrity fell below 50% 2932 | -8/Storage | Build established: Mutant 2981 | -8/Storage | Released all parts (5) 2996 | -8/Storage | Core integrity fell below 20% 3009 | -8/Storage | Destroyed by B-36 Bruiser with Hammer Last Messages --------------- Flight Unit destroyed. Critical hit (Burn: +37). ALERT: Hostiles spotted, dispatching reinforcements to Terminal S002. Lgt. Treads destroyed. Adv. Beam Rifle destroyed. Released Imp. VTOL Module. Released Signal Interpreter. Released Med. Storage Unit. Released Imp. Terrain Scan Processor. Released Hvy. EM Shotgun. S-10 Pest destroyed. System corrupted: Matter fused (-9). Dropped Med. Battery. S-10 Pest destroyed. R-06 Scavenger collects Imp. Heat Sink. R-06 Scavenger collects Imp. VTOL Module. K-01 Serf collects debris. R-06 Scavenger collects Lgt. Assault Rifle. Heat Sink destroyed. System corrupted by crushing effect (+2). Map ----- +----------------------------------------------------+ | ??????????????????????????????????????????? | | ??????????????????????????????????????????? | | ??????????????????????????????????????????? | | ??????????????????????????????????????????? | | ??????????????????????????????????????????? | | ??????????????????????????????????????????? | | ??????????????????????????????????????????? | | ??????????????????????????????????????????? | | ??????????????????????????????????????????? | | ??????????????????????????????????????????? | | ??????????????????????????????????????????? | | ?????????????????????????Y????????????????? | | ??????????????????????????????????????????? | | ??????????????????????????????????????????? | | ??????????????????????????????????????????? | | ?????????????? ? ????????????????????????? | | ????????????? ???????????????Y????????? | | ????????????? T ????????????????????????? | | ?????????????? ?#########??????????????? | | ?????????????? ?# #??????????????? | | ??????????????# ?# #??????????????? | | ??????????????# ?# """s#??????????????? | | ??????????????# ## """ #??????????????? | | ??????????????# ## g""" #??????????????? | | ??????????????# ## g #??????????????? | | ??????????????# ## a @ #??????????????? | | ??????????????+ #####+#b###?????????????? | | ??????????????# #?????????????? | | ??????????????# +?????????????? | | ?????????#????# !! Y #?????????????? | | ??#?#???#?#???# [#####r###/#?????????????? | | #? ?? ??????# ## r%= k#?????????????? | | ?? ???? ?? ? # ##""" [% #?????????????? | | ?# ? ??? ??#g ##""" #?????????????? | | ?# ?? ? ?? ?# ##""" #?????????????? | | ?# ? ? ?? # ##""" #?????????????? | | ##+##+###/#####g ##""" ! #?????????????? | | ## g ## ! #?????????????? | | ## ## #?????????????? | | % ## #?????????????? | | ##[################### ######?????????????? | | ##+###???###?####???###???????????????????? | | % %% #######?#???????#????????????????????? | | % %# ##?#?#?????????????????????????? | | %# #?##?#?#???????????????????????? | | """"%+% % #######????????????????????????? | | [" # ] #??###??###??#?????????????????? | | [" # % #####??#?####???##???#?????????? | | """" ##% ####?#?#####??#??????#??????????? | | ##% #?#####?####?##?????????????????? | +----------------------------------------------------+ Best States ------------- Heat Dissipation 41 Energy Generation 16 Energy Capacity 290 Matter Stores 300 Matter Capacity 300 Sight Range 16 Robot Scan Range 14 Terrain Scan Range 16 Terrain Scan Density 110 Armor Coverage 150 Evasion (%) 55 Recoil Reduction 4 Item Schematics ----------------- None Robot Schematics ------------------ None Fabricated ------------ Nothing Repaired ---------- Nothing Studied --------- None Alien Tech Used ----------------- None Achievements -------------- Drive-By Librarian Omniscient Cartographer Sixth Sense Challenges ------------ None Game ------ Seed GyrokineticMassMaxwheels Manual? 0 Play Time 00:48:57 Cumulative 7.2 hours Start 2026.08.02 @ 23:19:24 End 2026.08.03 @ 00:09:33 Sessions 1 Manual Loads 0 Difficulty Rogue Special Mode None Game No. 7 Rogue 5 Adventurer 2 Explorer 0 Win Type - Total 0 Types 0/0/0/0/0/0/0/0/0/0 Lore% 7 Gallery% 11 Achievement% 13 Wizard Run 0 Options --------- Layout 0 ASCII 0 Keyboard 0 Movement Numpad Keybinds 0 Fullscreen 1 Font 24/Smallcaps Map View 76x50 Zoom Use 0% Tactical HUD 0 Map Filters NONE Filters NONE Steam 1 RUN: 02a2bba3-fe48-44ec-9d59-cefbe3910401